[Event "Kwalificatie NJK A Groningen"]
[Site "Hoogkerk, Netherlands"]
[Date "2023.02.18"]
[Round "2.4"]
[White "Van Den Berg, Mees"]
[Black "Goudriaan, Rafael"]
[Result "1-0"]
[TimeControl "55 min. + 10 sec./zet"]
[WhiteElo "1702"]
[BlackElo "1882"]

1. Nf3 {[%clk 00:55:11]} {[%emt 00:00:09]} Nc6 {[%clk 00:54:48]} {[%emt
00:00:33]} 2. d4 {[%clk 00:54:01]} {[%emt 00:01:19]} d5 {[%clk 00:54:36]}
{[%emt 00:00:21]} 3. c4 {[%clk 00:53:43]} {[%emt 00:00:29]} e6 {[%clk
00:53:33]} {[%emt 00:01:13]} 4. Nc3 {[%clk 00:52:28]} {[%emt 00:01:25]} Nf6
{[%clk 00:53:17]} {[%emt 00:00:26]} 5. Bg5 {[%clk 00:43:33]} {[%emt 00:09:04]}
Be7 {[%clk 00:52:36]} {[%emt 00:00:51]} 6. e3 {[%clk 00:42:47]} {[%emt
00:00:57]} O-O {[%clk 00:52:37]} {[%emt 00:00:09]} 7. a3 {[%clk 00:36:34]}
{[%emt 00:06:23]} dxc4 {[%clk 00:47:13]} {[%emt 00:05:34]} 8. Bxc4 {[%clk
00:33:33]} {[%emt 00:03:10]} Na5 {[%clk 00:47:14]} {[%emt 00:00:09]} 9. Bd3
{[%clk 00:32:01]} {[%emt 00:01:43]} b6 {[%clk 00:47:08]} {[%emt 00:00:16]} 10.
b4 {[%clk 00:27:40]} {[%emt 00:04:31]} Nb7 {[%clk 00:47:14]} {[%emt 00:00:04]}
11. Ne5 {[%clk 00:23:32]} {[%emt 00:04:17]} Bd7 {[%clk 00:44:55]} {[%emt
00:02:30]} 12. Qf3 {[%clk 00:20:29]} {[%emt 00:03:12]} Nd6 {[%clk 00:45:04]}
{[%emt 00:00:02]} 13. Rc1 {[%clk 00:18:31]} {[%emt 00:02:08]} a5 {[%clk
00:35:28]} {[%emt 00:09:47]} 14. b5 {[%clk 00:15:31]} {[%emt 00:03:09]} a4
{[%clk 00:35:11]} {[%emt 00:00:27]} 15. e4 {[%clk 00:13:57]} {[%emt 00:01:44]}
Ra5 {[%clk 00:33:23]} {[%emt 00:01:58]} 16. Bxf6 {[%clk 00:09:52]} {[%emt
00:04:14]} Bxf6 {[%clk 00:32:59]} {[%emt 00:00:35]} 17. Nxd7 {[%clk 00:09:28]}
{[%emt 00:00:34]} Qxd7 {[%clk 00:33:07]} 18. e5 {[%clk 00:09:26]} {[%emt
00:00:12]} Bg5 {[%clk 00:32:29]} {[%emt 00:00:48]} 19. Rd1 {[%clk 00:05:43]}
{[%emt 00:03:53]} Nf5 {[%clk 00:31:02]} {[%emt 00:01:38]} 20. d5 {[%clk
00:04:10]} {[%emt 00:01:42]} g6 {[%clk 00:29:59]} {[%emt 00:01:12]} 21. h4
{[%clk 00:03:10]} {[%emt 00:01:11]} Be7 {[%clk 00:28:42]} {[%emt 00:01:28]} 22.
h5 {[%clk 00:02:35]} {[%emt 00:00:45]} Bxa3 {[%clk 00:28:27]} {[%emt 00:00:24]}
23. hxg6 {[%clk 00:01:36]} {[%emt 00:01:10]} fxg6 {[%clk 00:28:28]} {[%emt
00:00:09]} 24. Ne4 {[%clk 00:01:17]} {[%emt 00:00:28]} Be7 {[%clk 00:27:38]}
{[%emt 00:01:00]} 25. Qh3 {[%clk 00:00:47]} {[%emt 00:00:41]} Rf7 {[%clk
00:27:27]} {[%emt 00:00:21]} 26. Bc4 {[%clk 00:00:39]} {[%emt 00:00:17]} Rg7
{[%clk 00:27:23]} {[%emt 00:00:14]} 27. dxe6 {[%clk 00:00:38]} {[%emt
00:00:11]} Bb4+ {[%clk 00:25:02]} {[%emt 00:02:32]} 28. Ke2 {[%clk 00:00:39]}
{[%emt 00:00:09]} Nd4+ {[%clk 00:24:49]} {[%emt 00:00:23]} 29. Kf1 {[%clk
00:00:47]} {[%emt 00:00:01]} Qe7 {[%clk 00:24:04]} {[%emt 00:00:56]} 30. Rxd4
{[%clk 00:00:55]} {[%emt 00:00:02]} Ra8 {[%clk 00:23:38]} {[%emt 00:00:36]} 31.
Nf6+ {[%clk 00:01:03]} {[%emt 00:00:02]} Kh8 {[%clk 00:23:34]} {[%emt
00:00:13]} 32. Rd7 {[%clk 00:01:07]} {[%emt 00:00:06]} Qc5 {[%clk 00:22:57]}
{[%emt 00:00:48]} 33. Qxh7+ {[%clk 00:01:15]} {[%emt 00:00:02]} 1-0

[Event "Kwalificatie NJK A Groningen"]
[Site "Hoogkerk, Netherlands"]
[Date "2023.02.18"]
[Round "2.5"]
[White "Wierenga, JaÃ«l"]
[Black "Venema, Katja"]
[Result "1/2-1/2"]
[TimeControl "55 min. + 10 sec./zet"]
[WhiteElo "1879"]
[BlackElo "1683"]

1. d4 {[%clk 00:55:19]} {[%emt 00:00:01]} d5 {[%clk 00:55:11]} {[%emt
00:00:09]} 2. Bf4 {[%clk 00:55:14]} {[%emt 00:00:15]} Nf6 {[%clk 00:55:02]}
{[%emt 00:00:19]} 3. e3 {[%clk 00:55:21]} {[%emt 00:00:04]} g6 {[%clk
00:54:20]} {[%emt 00:00:51]} 4. Nf3 {[%clk 00:55:22]} {[%emt 00:00:08]} Bg7
{[%clk 00:54:19]} {[%emt 00:00:12]} 5. Ne5 {[%clk 00:55:28]} {[%emt 00:00:04]}
Nh5 {[%clk 00:53:36]} {[%emt 00:00:53]} 6. Bg3 {[%clk 00:47:49]} {[%emt
00:07:48]} Nxg3 {[%clk 00:53:20]} {[%emt 00:00:27]} 7. hxg3 {[%clk 00:47:54]}
{[%emt 00:00:02]} c5 {[%clk 00:49:53]} {[%emt 00:03:41]} 8. Bb5+ {[%clk
00:43:25]} {[%emt 00:04:38]} Bd7 {[%clk 00:47:55]} {[%emt 00:02:08]} 9. Nxd7
{[%clk 00:40:55]} {[%emt 00:02:40]} Nxd7 {[%clk 00:47:56]} {[%emt 00:00:09]} 10.
Nc3 {[%clk 00:37:38]} {[%emt 00:03:27]} a6 {[%clk 00:46:52]} {[%emt 00:01:15]}
11. Bxd7+ {[%clk 00:37:11]} {[%emt 00:00:36]} Qxd7 {[%clk 00:46:55]} {[%emt
00:00:08]} 12. dxc5 {[%clk 00:32:29]} {[%emt 00:04:52]} e6 {[%clk 00:42:42]}
{[%emt 00:04:22]} 13. Qd2 {[%clk 00:31:19]} {[%emt 00:01:19]} a5 {[%clk
00:39:45]} {[%emt 00:03:08]} 14. O-O-O {[%clk 00:26:22]} {[%emt 00:05:07]} Qc6
{[%clk 00:35:45]} {[%emt 00:04:10]} 15. e4 {[%clk 00:12:38]} {[%emt 00:13:54]}
d4 {[%clk 00:30:32]} {[%emt 00:05:23]} 16. Ne2 {[%clk 00:12:32]} {[%emt
00:00:16]} Qxc5 {[%clk 00:21:22]} {[%emt 00:09:20]} 17. Nxd4 {[%clk 00:07:03]}
{[%emt 00:05:39]} O-O-O {[%clk 00:20:41]} {[%emt 00:00:51]} 18. Qc3 {[%clk
00:05:23]} {[%emt 00:01:51]} Qxc3 {[%clk 00:18:38]} {[%emt 00:02:13]} 19. bxc3
{[%clk 00:05:31]} {[%emt 00:00:01]} h5 {[%clk 00:17:53]} {[%emt 00:00:56]} 20.
Nb5 {[%clk 00:05:27]} {[%emt 00:00:14]} Rd7 {[%clk 00:14:00]} {[%emt 00:04:03]}
21. Rxd7 {[%clk 00:04:42]} {[%emt 00:00:54]} Kxd7 {[%emt 00:00:08]} 22. f4
{[%clk 00:04:35]} {[%emt 00:00:16]} Rc8 {[%clk 00:12:50]} {[%emt 00:01:23]} 23.
Rd1+ {[%clk 00:04:37]} {[%emt 00:00:09]} Ke7 {[%clk 00:12:21]} {[%emt
00:00:39]} 24. Rd3 {[%clk 00:03:20]} {[%emt 00:01:26]} Rc5 {[%clk 00:11:19]}
{[%emt 00:01:12]} 25. Nd4 {[%clk 00:03:12]} {[%emt 00:00:18]} b6 {[%clk
00:08:02]} {[%emt 00:03:28]} 26. Kb2 {[%clk 00:02:31]} {[%emt 00:00:50]} e5
{[%clk 00:07:11]} {[%emt 00:01:02]} 27. Ne2 {[%clk 00:01:42]} {[%emt 00:00:58]}
Rc4 {[%clk 00:06:01]} {[%emt 00:01:20]} 28. Re3 {[%clk 00:01:19]} {[%emt
00:00:33]} Bh6 {[%clk 00:05:46]} {[%emt 00:00:25]} 29. Kb3 {[%clk 00:01:24]}
{[%emt 00:00:06]} b5 {[%clk 00:05:38]} {[%emt 00:00:18]} 30. a3 {[%clk
00:01:17]} {[%emt 00:00:16]} h4 {[%clk 00:05:19]} {[%emt 00:00:29]} 31. gxh4
{[%clk 00:01:12]} {[%emt 00:00:15]} exf4 {[%clk 00:05:17]} {[%emt 00:00:12]} 32.
Rf3 {[%clk 00:01:10]} {[%emt 00:00:12]} Rxe4 {[%clk 00:05:13]} {[%emt
00:00:14]} 33. Nd4 {[%clk 00:01:17]} {[%emt 00:00:03]} Bg7 {[%clk 00:03:54]}
{[%emt 00:01:29]} 34. Nxb5 {[%clk 00:01:22]} {[%emt 00:00:06]} a4+ {[%clk
00:03:43]} {[%emt 00:00:21]} 35. Kb2 {[%clk 00:01:20]} {[%emt 00:00:11]} Bf6
{[%clk 00:03:41]} {[%emt 00:00:13]} 36. Rh3 {[%clk 00:00:51]} {[%emt 00:00:38]}
Re3 {[%clk 00:03:30]} {[%emt 00:00:22]} 37. Rh1 {[%clk 00:00:27]} {[%emt
00:00:33]} Rg3 {[%clk 00:03:23]} {[%emt 00:00:17]} 38. Rf1 {[%clk 00:00:34]}
{[%emt 00:00:04]} Rg4 {[%clk 00:03:09]} {[%emt 00:00:23]} 39. Nc7 {[%clk
00:00:17]} {[%emt 00:00:27]} Be5 {[%clk 00:02:29]} {[%emt 00:00:53]} 40. Nd5+
{[%clk 00:00:18]} {[%emt 00:00:06]} 1/2-1/2

[Event "Kwalificatie NJK A Groningen"]
[Site "Hoogkerk, Netherlands"]
[Date "2023.02.18"]
[Round "2.6"]
[White "Moskalets, Sofia"]
[Black "Alvares, Thomas"]
[Result "1-0"]
[TimeControl "55 min. + 10 sec./zet"]
[WhiteElo "1675"]
[BlackElo "1855"]

1. d4 {[%clk 00:55:15]} {[%emt 00:00:04]} Nf6 {[%clk 00:55:12]} {[%emt
00:00:07]} 2. Nc3 {[%clk 00:55:19]} {[%emt 00:00:07]} d5 {[%clk 00:55:15]}
{[%emt 00:00:06]} 3. Bf4 {[%clk 00:55:09]} {[%emt 00:00:21]} c5 {[%clk
00:55:19]} {[%emt 00:00:06]} 4. e3 {[%clk 00:54:43]} {[%emt 00:00:36]} cxd4
{[%clk 00:55:24]} {[%emt 00:00:05]} 5. exd4 {[%clk 00:54:46]} {[%emt 00:00:07]}
a6 {[%clk 00:55:23]} {[%emt 00:00:12]} 6. Nf3 {[%clk 00:53:29]} {[%emt
00:01:27]} Bf5 {[%clk 00:53:19]} {[%emt 00:02:13]} 7. Bd3 {[%clk 00:49:21]}
{[%emt 00:04:18]} Bxd3 {[%clk 00:52:28]} {[%emt 00:01:01]} 8. Qxd3 {[%clk
00:49:20]} {[%emt 00:00:11]} Nc6 {[%clk 00:51:47]} {[%emt 00:00:52]} 9. O-O
{[%clk 00:45:58]} {[%emt 00:03:31]} g6 {[%clk 00:50:33]} {[%emt 00:01:24]} 10.
Rfe1 {[%clk 00:43:22]} {[%emt 00:02:46]} Bg7 {[%clk 00:50:20]} {[%emt
00:00:23]} 11. h3 {[%clk 00:41:52]} {[%emt 00:01:40]} O-O {[%clk 00:49:17]}
{[%emt 00:01:14]} 12. Ne5 {[%clk 00:39:42]} {[%emt 00:02:20]} Rc8 {[%clk
00:43:31]} {[%emt 00:05:55]} 13. Rad1 {[%clk 00:35:47]} {[%emt 00:04:05]} e6
{[%clk 00:38:35]} {[%emt 00:05:06]} 14. a3 {[%clk 00:31:32]} {[%emt 00:04:25]}
Na5 {[%clk 00:35:53]} {[%emt 00:02:53]} 15. Na4 {[%clk 00:26:42]} {[%emt
00:05:00]} Nc4 {[%clk 00:32:22]} {[%emt 00:03:41]} 16. Nxc4 {[%clk 00:24:03]}
{[%emt 00:02:49]} dxc4 {[%clk 00:31:25]} {[%emt 00:01:06]} 17. Qd2 {[%clk
00:22:16]} {[%emt 00:01:57]} Re8 {[%clk 00:27:52]} {[%emt 00:03:44]} 18. Nc5
{[%clk 00:18:59]} {[%emt 00:03:26]} Qd5 {[%clk 00:26:57]} {[%emt 00:01:04]} 19.
Be5 {[%clk 00:15:12]} {[%emt 00:03:57]} Qc6 {[%clk 00:21:50]} {[%emt 00:05:18]}
20. c3 {[%clk 00:12:30]} {[%emt 00:02:53]} Red8 {[%clk 00:17:49]} {[%emt
00:04:10]} 21. Qf4 {[%clk 00:09:14]} {[%emt 00:03:26]} Nd5 {[%clk 00:16:20]}
{[%emt 00:01:39]} 22. Qf3 {[%clk 00:07:30]} {[%emt 00:01:54]} f6 {[%clk
00:12:01]} {[%emt 00:04:29]} 23. Bg3 {[%clk 00:06:27]} {[%emt 00:01:13]} e5
{[%clk 00:10:02]} {[%emt 00:02:09]} 24. Bh4 {[%clk 00:04:05]} {[%emt 00:02:31]}
b5 {[%clk 00:04:55]} {[%emt 00:05:18]} 25. Ne4 {[%clk 00:02:28]} {[%emt
00:01:47]} Nf4 {[%clk 00:03:13]} {[%emt 00:01:52]} 26. dxe5 {[%clk 00:01:49]}
{[%emt 00:00:49]} fxe5 {[%clk 00:03:01]} {[%emt 00:00:22]} 27. Rxd8+ {[%clk
00:01:47]} {[%emt 00:00:12]} Rxd8 {[%clk 00:02:35]} {[%emt 00:00:36]} 28. Bxd8
{[%clk 00:01:56]} {[%emt 00:00:01]} Qd7 {[%clk 00:01:52]} {[%emt 00:00:54]} 29.
Nf6+ {[%clk 00:01:31]} {[%emt 00:00:34]} Bxf6 {[%clk 00:01:58]} {[%emt
00:00:04]} 30. Bxf6 {[%clk 00:01:39]} {[%emt 00:00:02]} Nd3 {[%clk 00:01:55]}
{[%emt 00:00:13]} 31. Re2 {[%clk 00:01:12]} {[%emt 00:00:37]} Qd6 {[%clk
00:01:27]} {[%emt 00:00:37]} 32. Bg5 {[%clk 00:00:55]} {[%emt 00:00:28]} Kg7
{[%clk 00:01:08]} {[%emt 00:00:26]} 33. Rd2 {[%clk 00:00:46]} {[%emt 00:00:21]}
Qe6 {[%clk 00:00:51]} {[%emt 00:00:28]} 34. Qb7+ {[%clk 00:00:44]} {[%emt
00:00:13]} Kg8 {[%clk 00:00:53]} {[%emt 00:00:07]} 35. Qe7 {[%clk 00:00:51]}
{[%emt 00:00:03]} Qxe7 {[%clk 00:00:40]} {[%emt 00:00:24]} 36. Bxe7 {[%clk
00:00:59]} {[%emt 00:00:02]} Kf7 {[%clk 00:00:48]} 37. Bg5 {[%clk 00:00:57]}
{[%emt 00:00:12]} Ke6 {[%clk 00:00:46]} {[%emt 00:00:12]} 38. Kf1 {[%clk
00:01:02]} {[%emt 00:00:05]} Kf5 {[%clk 00:00:38]} {[%emt 00:00:18]} 39. Be3
{[%clk 00:01:08]} {[%emt 00:00:04]} Ke4 {[%clk 00:00:33]} {[%emt 00:00:15]} 40.
Ke2 {[%clk 00:01:12]} {[%emt 00:00:06]} Nc1+ {[%clk 00:00:17]} {[%emt
00:00:26]} 41. Kd1 {[%clk 00:01:05]} {[%emt 00:00:16]} Nd3 {[%clk 00:00:25]}
{[%emt 00:00:02]} 42. Bb6 {[%clk 00:01:00]} {[%emt 00:00:16]} h6 {[%clk
00:00:19]} {[%emt 00:00:16]} 43. b3 {[%clk 00:00:47]} {[%emt 00:00:24]} cxb3
{[%clk 00:00:11]} {[%emt 00:00:18]} 44. f3+ {[%emt 00:00:08]} Kd5 {[%emt
00:00:04]} 1-0

[Event "Kwalificatie NJK A Groningen"]
[Site "Hoogkerk, Netherlands"]
[Date "2023.02.18"]
[Round "2.7"]
[White "Den Heijer, Rolinde"]
[Black "De Vries, Arjan"]
[Result "0-1"]
[TimeControl "55 min. + 10 sec./zet"]
[WhiteElo "1831"]
[BlackElo "1645"]

1. e4 {[%clk 00:55:18]} {[%emt 00:00:02]} e5 {[%clk 00:55:13]} {[%emt
00:00:08]} 2. Nf3 {[%clk 00:55:24]} {[%emt 00:00:05]} Nf6 {[%clk 00:55:14]}
{[%emt 00:00:08]} 3. Nxe5 {[%clk 00:55:04]} {[%emt 00:00:30]} d6 {[%clk
00:54:49]} {[%emt 00:00:35]} 4. Nf3 {[%clk 00:55:07]} {[%emt 00:00:07]} Nxe4
{[%clk 00:54:46]} {[%emt 00:00:14]} 5. d4 {[%clk 00:55:03]} {[%emt 00:00:14]}
d5 {[%clk 00:54:40]} {[%emt 00:00:15]} 6. Bd3 {[%clk 00:54:56]} {[%emt
00:00:16]} c5 {[%clk 00:52:45]} {[%emt 00:02:06]} 7. dxc5 {[%clk 00:53:14]}
{[%emt 00:01:52]} Nxc5 {[%clk 00:52:24]} {[%emt 00:00:31]} 8. Bb5+ {[%clk
00:52:11]} {[%emt 00:01:13]} Nc6 {[%clk 00:51:53]} {[%emt 00:00:41]} 9. O-O
{[%clk 00:51:34]} {[%emt 00:00:46]} Be7 {[%clk 00:51:54]} {[%emt 00:00:10]} 10.
Ne5 {[%clk 00:50:12]} {[%emt 00:01:31]} Qb6 {[%clk 00:51:39]} {[%emt 00:00:26]}
11. Qxd5 {[%clk 00:46:02]} {[%emt 00:04:20]} O-O {[%clk 00:49:46]} {[%emt
00:02:03]} 12. Nxc6 {[%clk 00:43:48]} {[%emt 00:02:24]} bxc6 {[%clk 00:49:09]}
{[%emt 00:00:48]} 13. Qxc6 {[%clk 00:43:09]} {[%emt 00:00:48]} Qa5 {[%clk
00:48:19]} {[%emt 00:01:00]} 14. Bc4 {[%clk 00:39:37]} {[%emt 00:03:41]} Bb7
{[%clk 00:46:45]} {[%emt 00:01:45]} 15. Qb5 {[%clk 00:39:33]} {[%emt 00:00:13]}
Qc7 {[%clk 00:46:47]} {[%emt 00:00:09]} 16. Qb4 {[%clk 00:35:37]} {[%emt
00:04:06]} Ne6 {[%clk 00:43:36]} {[%emt 00:03:21]} 17. Qc3 {[%clk 00:34:05]}
{[%emt 00:01:42]} Bf6 {[%clk 00:43:24]} {[%emt 00:00:22]} 18. Qb3 {[%clk
00:32:46]} {[%emt 00:01:29]} Nd4 {[%clk 00:42:57]} {[%emt 00:00:36]} 19. Qa4
{[%clk 00:29:59]} {[%emt 00:02:58]} Bc6 {[%clk 00:42:18]} {[%emt 00:00:48]} 20.
Qa6 {[%clk 00:29:06]} {[%emt 00:01:04]} Nxc2 {[%clk 00:42:01]} {[%emt
00:00:27]} 21. Bd3 {[%clk 00:28:25]} {[%emt 00:00:51]} Nxa1 {[%clk 00:41:55]}
{[%emt 00:00:15]} 22. Nc3 {[%clk 00:28:05]} {[%emt 00:00:31]} Bb7 {[%clk
00:39:55]} {[%emt 00:02:10]} 23. Qa4 {[%clk 00:27:22]} {[%emt 00:00:53]} Bxc3
{[%clk 00:38:57]} {[%emt 00:01:09]} 24. Qh4 {[%clk 00:26:05]} {[%emt 00:01:26]}
g6 {[%clk 00:37:52]} {[%emt 00:01:14]} 25. bxc3 {[%clk 00:25:47]} {[%emt
00:00:29]} Qxc3 {[%clk 00:37:40]} {[%emt 00:00:22]} 26. Bh6 {[%clk 00:24:03]}
{[%emt 00:01:53]} Rfd8 {[%clk 00:37:45]} {[%emt 00:00:05]} 27. Be2 {[%clk
00:22:49]} {[%emt 00:01:24]} Nc2 {[%clk 00:37:34]} {[%emt 00:00:21]} 28. Rc1
{[%clk 00:21:52]} {[%emt 00:01:07]} Rac8 {[%clk 00:36:15]} {[%emt 00:01:29]} 29.
h3 {[%clk 00:21:26]} {[%emt 00:00:36]} Qd4 {[%clk 00:34:49]} {[%emt 00:01:36]}
30. Qg3 {[%clk 00:21:07]} {[%emt 00:00:29]} Re8 {[%clk 00:32:51]} {[%emt
00:02:08]} 31. Bg4 {[%clk 00:20:33]} {[%emt 00:00:44]} Rc3 {[%clk 00:32:00]}
{[%emt 00:01:02]} 32. Bf3 {[%clk 00:20:03]} {[%emt 00:00:39]} Bxf3 {[%clk
00:31:56]} {[%emt 00:00:14]} 33. gxf3 {[%clk 00:20:06]} {[%emt 00:00:07]} Ne1
{[%clk 00:30:30]} {[%emt 00:01:40]} 34. Rxe1 {[%clk 00:19:22]} {[%emt
00:00:50]} Rxe1+ {[%clk 00:30:32]} {[%emt 00:00:08]} 35. Kg2 {[%clk 00:19:28]}
{[%emt 00:00:04]} Re8 {[%clk 00:30:38]} {[%emt 00:00:05]} 0-1

[Event "Kwalificatie NJK A Groningen"]
[Site "Hoogkerk, Netherlands"]
[Date "2023.02.18"]
[Round "2.9"]
[White "Staal, Ryan"]
[Black "Van Lieshout, Tobias"]
[Result "1-0"]
[TimeControl "55 min. + 10 sec./zet"]
[WhiteElo "1911"]
[BlackElo "1128"]

1. e4 {[%clk 00:55:18]} {[%emt 00:00:02]} e5 {[%clk 00:55:12]} {[%emt
00:00:09]} 2. Nf3 {[%clk 00:55:25]} {[%emt 00:00:03]} Nc6 {[%clk 00:55:12]}
{[%emt 00:00:10]} 3. Bc4 {[%clk 00:55:32]} {[%emt 00:00:03]} Bc5 {[%clk
00:54:52]} {[%emt 00:00:30]} 4. c3 {[%clk 00:55:38]} {[%emt 00:00:04]} a6
{[%clk 00:54:32]} {[%emt 00:00:29]} 5. d4 {[%clk 00:55:41]} {[%emt 00:00:07]}
exd4 {[%clk 00:54:04]} {[%emt 00:00:39]} 6. cxd4 {[%clk 00:55:50]} {[%emt
00:00:01]} Bb4+ {[%clk 00:53:51]} {[%emt 00:00:23]} 7. Nc3 {[%clk 00:55:54]}
{[%emt 00:00:06]} d6 {[%clk 00:53:26]} {[%emt 00:00:35]} 8. O-O {[%clk
00:55:29]} {[%emt 00:00:35]} Nf6 {[%clk 00:53:13]} {[%emt 00:00:23]} 9. Bg5
{[%clk 00:55:28]} {[%emt 00:00:11]} h6 {[%clk 00:53:02]} {[%emt 00:00:21]} 10.
Bh4 {[%clk 00:55:34]} {[%emt 00:00:04]} g5 {[%clk 00:52:38]} {[%emt 00:00:34]}
11. Bg3 {[%clk 00:55:26]} {[%emt 00:00:18]} Bg4 {[%clk 00:52:19]} {[%emt
00:00:29]} 12. Be2 {[%clk 00:52:40]} {[%emt 00:02:55]} Qd7 {[%clk 00:51:46]}
{[%emt 00:00:44]} 13. e5 {[%clk 00:51:10]} {[%emt 00:01:40]} Ng8 {[%clk
00:49:52]} {[%emt 00:02:03]} 14. exd6 {[%clk 00:50:27]} {[%emt 00:00:54]} cxd6
{[%clk 00:49:48]} {[%emt 00:00:13]} 15. Nd5 {[%clk 00:50:06]} {[%emt 00:00:31]}
Ba5 {[%clk 00:49:19]} {[%emt 00:00:39]} 16. a3 {[%clk 00:46:46]} {[%emt
00:03:30]} Qe6 {[%clk 00:47:57]} {[%emt 00:01:32]} 17. Bc4 {[%clk 00:45:53]}
{[%emt 00:01:03]} Qg6 {[%clk 00:46:37]} {[%emt 00:01:29]} 18. b4 {[%clk
00:45:11]} {[%emt 00:00:54]} Bd8 {[%clk 00:46:25]} {[%emt 00:00:21]} 19. Re1+
{[%clk 00:45:03]} {[%emt 00:00:18]} Nge7 {[%clk 00:46:11]} {[%emt 00:00:24]} 20.
h3 {[%clk 00:43:25]} {[%emt 00:01:48]} Bxf3 {[%clk 00:45:46]} {[%emt 00:00:34]}
21. Qxf3 {[%clk 00:42:57]} {[%emt 00:00:39]} Nxd4 {[%clk 00:45:31]} {[%emt
00:00:25]} 22. Qc3 {[%clk 00:42:41]} {[%emt 00:00:27]} Qg7 {[%clk 00:44:24]}
{[%emt 00:01:17]} 23. Nxe7 {[%clk 00:41:17]} {[%emt 00:01:34]} Bxe7 {[%clk
00:43:07]} {[%emt 00:01:25]} 24. Qe3 {[%clk 00:38:20]} {[%emt 00:03:08]} f5
{[%clk 00:42:07]} {[%emt 00:01:10]} 25. Bxd6 {[%clk 00:37:17]} {[%emt
00:01:13]} O-O-O {[%clk 00:41:19]} {[%emt 00:00:57]} 26. Be6+ {[%clk 00:36:46]}
{[%emt 00:00:42]} Nxe6 {[%clk 00:41:03]} {[%emt 00:00:25]} 27. Qxe6+ {[%clk
00:36:55]} {[%emt 00:00:02]} Rd7 {[%clk 00:40:26]} {[%emt 00:00:47]} 28. Rac1+
{[%clk 00:36:46]} {[%emt 00:00:19]} Kd8 {[%clk 00:40:17]} {[%emt 00:00:20]} 29.
Bxe7+ {[%clk 00:36:18]} {[%emt 00:00:37]} Rxe7 {[%clk 00:40:04]} {[%emt
00:00:22]} 30. Rc8# {[%clk 00:36:14]} {[%emt 00:00:04]} 1-0